[Event "MCCT Oslo Esports Cup 2022"]
[Site "Oslo"]
[Date "2022.04.20"]
[Round "3.1"]
[White "Le, Quang Liem"]
[Black "Praggnanandhaa R"]
[Result "1/2-1/2"]
[ECO "E04"]
[WhiteElo "2709"]
[BlackElo "2624"]
[Annotator "TA"]
[PlyCount "66"]
[EventDate "2022.04.14"]
[EventType "tourn"]
[EventCountry "NOR"]
[SourceTitle "playchess.com"]
[Source "ChessBase"]
[SourceQuality "1"]
[TimeControl "1500+10"]

{[%evp 13,66,22,30,32,49,0,-18,-20,-22,-32,-33,-33,-33,-37,-36,-33,-33,-31,-31,-32,-32,-45,-43,-49,-25,-38,-37,-39,-37,-37,-51,-37,-39,-56,-40,-82,-83,-106,-60,-64,0,0,0,0,0,0,0,0,0,0,0,0,0,0,0]} 1. d4 {[%emt 0:10:00]} Nf6 {[%emt 0:10:00]} 2. c4 {[%emt 0:00:02]} e6 {[%emt 0:00:01]} 3. Nf3 {[%emt 0:00:01]} d5 {[%emt 0:00:02]} 4. g3 {[%emt 0:00:01]} dxc4 {[%emt 0:00:02]} 5. Bg2 {[%emt 0:00:01]} Nbd7 {[%emt 0:00:01]} 6. O-O {[%emt 0:00:14]} c6 {[%emt 0:00:06] is cutting edge theory.} 7. a4 {[%emt 0:00:19]} a5 {[%emt 0:00:07]} 8. Qc2 {[%emt 0:00:46][%mdl 1024] White has compensation. E04: Open Catalan: 5 Nf3.} b5 {[%emt 0:00:06]} 9. Bg5 {[%emt 0:02:25]} (9. Ne5 $14 Nxe5 10. dxe5) 9... Qb6 {[%emt 0:03:20]} 10. Nc3 {[%emt 0:02:53]} Bb7 {[%emt 0:02:50] [#]} 11. Rfd1 $146 {[%emt 0:02:24]} ({Predecessor:} 11. e4 Bb4 12. Bxf6 gxf6 13. d5 cxd5 14. exd5 Bxc3 15. dxe6 fxe6 16. Qxc3 bxa4 17. Qxc4 {0-1 (30) Navarro,R-Fantoni,F Eclipse email 2000}) 11... h6 {[%emt 0:02:20]} 12. Bxf6 {[%emt 0:00:20]} Nxf6 {[%emt 0:00:02]} 13. Ne5 {[%emt 0:00:31]} Be7 {[%emt 0:00:42]} 14. b3 {[%emt 0:02:09]} cxb3 {[%emt 0:00:40]} 15. Qxb3 {[%emt 0:00:00][%cal Ra4b5]} b4 {[%emt 0:00:16]} 16. Ne4 {[%emt 0:00:04]} Rd8 {[%emt 0:01:39]} 17. Rac1 {[%emt 0:01:15][%cal Oe5c6]} Nxe4 {[%emt 0:02:21]} 18. Bxe4 {[%emt 0:00:00]} O-O {[%emt 0:00:01]} (18... Bf6 $5 {[%cal Rf6e5]}) 19. Bxc6 {[%emt 0:01:35]} Bf6 {[%emt 0:01:56] And now ...Bxe5 would win.} 20. Nd7 {[%emt 0:01:11] [#]} Rxd7 {[%emt 0:00:05]} 21. Bxd7 {[%emt 0:00:00]} Bxd4 {[%emt 0:00:11]} 22. e3 {[%emt 0:00:04] [#]} Bd5 $1 {[%emt 0:00:30]} 23. Qd3 {[%emt 0:00:07]} Bb2 {[%emt 0:00:11]} 24. Rb1 {[%emt 0:01:15]} Bf6 {[%emt 0:00:03]} 25. Bb5 {[%emt 0:00:20]} Qb7 {[%emt 0:00:09]} (25... Bf3 $17 26. Rd2 Bc3) 26. Rbc1 $1 $15 {[%emt 0:00:12]} b3 {[%emt 0:00:56]} (26... Bf3 $15 27. Rd2 Bd5) 27. e4 $1 $11 {[%emt 0:00:27] The position is equal.} Bxe4 {[%emt 0:00:17]} 28. Qxb3 {[%emt 0:00:03]} Bh1 {[%emt 0:00:02][%csl Gh1][%cal Rb7g2] This bishop pair is nice.} 29. Kf1 {[%emt 0:00:01]} Qg2+ {[%emt 0:00:15]} 30. Ke2 {[%emt 0:00:05]} Qe4+ {[%emt 0:00:02]} 31. Kf1 $1 {[%emt 0:00:01] Black must now prevent Bc6.} Qg2+ {[%emt 0:00:43]} 32. Ke2 {[%emt 0:00:10]} Qe4+ {[%emt 0:00:03]} 33. Kf1 $1 {[%emt 0:00:04] Hoping for Bc6.} Qg2+ {[%emt 0:00:23] Weighted Error Value: White=0.06 (flawless) /Black=0.06 (flawless)} 1/2-1/2

[Event "MCCT Oslo Esports Cup 2022"]
[Site "Oslo"]
[Date "2022.04.20"]
[Round "3.2"]
[White "Carlsen, Magnus"]
[Black "Giri, Anish"]
[Result "1-0"]
[ECO "A29"]
[WhiteElo "2864"]
[BlackElo "2773"]
[Annotator "TA"]
[PlyCount "131"]
[EventDate "2022.04.14"]
[EventType "tourn"]
[EventCountry "NOR"]
[SourceTitle "playchess.com"]
[Source "ChessBase"]
[SourceQuality "1"]
[TimeControl "1500+10"]

{[%evp 15,131,0,12,7,9,8,7,11,7,0,0,0,0,0,0,0,0,-3,2,14,4,0,2,0,36,10,25,26,26,16,35,23,42,54,54,50,48,58,64,62,72,62,85,62,81,62,64,62,62,58,137,58,93,58,58,58,93,58,93,93,93,93,93,93,93,99,111,89,89,89,89,89,185,152,186,122,148,125,117,38,50,8,8,8,8,8,8,8,8,8,459,452,651,647,647,633,10474,820,6470,6575,7991,10658,29962,29960,29972,29973,29974,29975,29975,4133,29975,29977,29985,29983,29985,29984,29986,29987]} 1. c4 {[%emt 0:10:00]} Nf6 {[%emt 0:10:00]} 2. Nc3 {[%emt 0:00:04]} e5 {[%emt 0:00:21]} 3. Nf3 {[%emt 0:00:03]} Nc6 {[%emt 0:00:01]} 4. g3 {[%emt 0:00:00]} d5 {[%emt 0:00:03]} 5. cxd5 {[%emt 0:00:01]} Nxd5 {[%emt 0:00:01]} 6. Bg2 {[%emt 0:00:01]} Bc5 {[%emt 0:00:01]} 7. O-O {[%emt 0:00:01]} O-O {[%emt 0:00:02]} 8. d3 {[%emt 0:00:04]} h6 {[%emt 0:00:05]} 9. Nxd5 {[%emt 0:00:27] A29: English Opening: Four Knights Variation with 4 g3.} Qxd5 {[%emt 0:00:01]} 10. Bd2 {[%emt 0:00:01][%cal Bc1d2,Bd2c3,Bc3b4,Bb4c5][%mdl 32]} (10. a3 a5 11. Bd2 Qe6 12. Rc1 Qe7 13. Bc3 Nd4 14. e3 Nxf3+ 15. Qxf3 Bd6 16. Qh5 c6 17. f4 exf4 18. gxf4 Qxe3+ {1-0 (38) Carlsen,M (2845)-Giri,A (2797) Shamkir 2019 CBM 190 [Krasenkow,Michal]}) 10... Rd8 {[%emt 0:01:29]} 11. Bc3 {[%emt 0:03:01][%cal Of3e5] The position is equal.} Qe6 {[%emt 0:01:43] [#]} 12. Qc2 $146 {[%emt 0:00:39][%cal Oc3e5]} ({Predecessor:} 12. Nd2 a5 13. Rc1 Ra6 14. Qb3 Qe7 15. Bxc6 Rxc6 16. Bxa5 Ra6 17. Bc3 c6 18. a3 {0-1 (28) Wang,H (2763)-Giri,A (2764) Chess.com INT 2020}) 12... Qe7 {[%emt 0:00:50]} 13. Rac1 {[%emt 0:00:03][%cal Oc3e5]} Bb6 {[%emt 0:00:14]} 14. a3 {[%emt 0:00:11]} Nd4 {[%emt 0:03:13]} 15. Nxd4 {[%emt 0:00:05]} exd4 {[%emt 0:00:01]} 16. Bb4 {[%emt 0:00:01]} Qe5 {[%emt 0:00:21]} 17. Bc5 {[%emt 0:01:12]} c6 {[%emt 0:00:18]} 18. b4 {[%emt 0:00:03]} Be6 {[%emt 0:00:49]} 19. Qb2 {[%emt 0:00:14]} Qh5 {[%emt 0:01:50]} 20. Bf3 {[%emt 0:00:16]} Bg4 {[%emt 0:00:32]} 21. Bxg4 {[%emt 0:00:01]} Qxg4 {[%emt 0:00:00]} 22. Rc4 {[%emt 0:00:02]} Qe6 {[%emt 0:02:24]} 23. Re1 {[%emt 0:00:02]} (23. Rxd4 {looks sharper.} Rxd4 24. Qxd4 Qxe2 25. Qd7) 23... Qf6 {[%emt 0:00:19]} 24. e4 {[%emt 0:00:45]} dxe3 {[%emt 0:00:15]} 25. Qxf6 {[%emt 0:00:01]} gxf6 {[%emt 0:00:00]} 26. Rxe3 {[%emt 0:00:01]} Re8 {[%emt 0:00:50]} 27. Kf1 {[%emt 0:00:41] &Bianco is more active.} Rad8 {[%emt 0:01:17]} 28. Ke2 {[%emt 0:00:40]} f5 {[%emt 0:00:15]} 29. Rf4 {[%emt 0:00:14]} Rxe3+ {[%emt 0:00:02]} 30. fxe3 $14 {[%emt 0:00:02][%mdl 4096] Endgame KRB-KRB} Rd5 {[%emt 0:00:19]} 31. Rc4 {[%emt 0:00:42]} Kg7 {[%emt 0:00:28]} 32. a4 {[%emt 0:00:11]} Kf6 {[%emt 0:00:16]} (32... Bxc5 $14 33. bxc5 (33. Rxc5 Rxc5 34. bxc5 Kf6 $11) 33... a5) 33. d4 {[%emt 0:00:31]} (33. Bf8 $16) 33... h5 {[%emt 0:00:15]} 34. Kf3 {[%emt 0:00:03]} Bxc5 $1 {[%emt 0:00:55]} 35. bxc5 {[%emt 0:00:34] KR-KR} Rd7 {[%emt 0:00:44]} 36. Rb4 {[%emt 0:00:05]} Kg6 {[%emt 0:00:27]} 37. a5 {[%emt 0:00:26][%cal Oa5a6] Black must now prevent a6!} a6 {[%emt 0:00:02]} 38. Kf4 {[%emt 0:00:01]} f6 {[%emt 0:00:03]} 39. Kf3 {[%emt 0:00:16]} Kg5 {[%emt 0:00:09]} 40. Rb2 {[%emt 0:00:08]} Re7 {[%emt 0:00:01]} 41. Rb1 {[%emt 0:00:18]} Kg6 {[%emt 0:00:01]} 42. Ke2 {[%emt 0:00:01][%cal Od4d5]} Kg5 {[%emt 0:00:37]} 43. Kd3 {[%emt 0:00:16][%cal Od4d5]} Kg6 {[%emt 0:00:21]} (43... Kg4 $16 {was worth a try.}) 44. d5 $1 $18 {[%emt 0:00:21] Strongly threatening dxc6.} cxd5 {[%emt 0:00:14]} 45. Kd4 {[%emt 0:00:01]} Rd7 {[%emt 0:00:16]} 46. Rb6 {[%emt 0:00:01] c6 is the strong threat.} Kg5 {[%emt 0:00:10]} 47. c6 {[%emt 0:00:13]} (47. h3 $16) 47... bxc6 $14 {[%emt 0:00:01]} 48. Rxa6 {[%emt 0:00:02]} Re7 $1 {[%emt 0:00:01]} 49. Rxc6 {[%emt 0:00:15]} Re4+ {[%emt 0:00:02]} 50. Kc5 {[%emt 0:00:01]} Rxe3 {[%emt 0:00:15]} 51. a6 {[%emt 0:00:03] Threatens to win with a7.} Ra3 {[%emt 0:00:03]} 52. Kb6 {[%emt 0:00:21]} ({But not} 52. Kxd5 h4 $14) 52... d4 $2 {[%emt 0:00:14][%mdl 8192] [#] This move loses the game for Black.} (52... f4 $11 {and Black stays safe.} 53. gxf4+ Kxf4) 53. a7 $1 $18 {[%emt 0:00:02] Hoping for Rc8.} (53. Rd6 d3 $14) 53... d3 {[%emt 0:00:03] [#]} (53... Kg4 $142 54. Rc5 (54. Rxf6 d3 $11) 54... Rxa7 55. Kxa7 d3) 54. Rc3 $3 {[%emt 0:00:18][%mdl 576] Promotion} Rxc3 {[%emt 0:00:42]} 55. a8=Q {[%emt 0:00:02] Prevents Ra3. Threatening mate with Qg8+. KQ-KR} d2 {[%emt 0:00:11][%cal Oc3c6]} 56. Qg8+ {[%emt 0:00:24]} Kh6 {[%emt 0:00:01]} 57. Qd8 {[%emt 0:00:06][%csl LRd2,LRf6]} Rb3+ {[%emt 0:00:18]} 58. Kc5 {[%emt 0:00:02] Qh8+ would kill now.} Rc3+ {[%emt 0:00:07]} 59. Kb4 {[%emt 0:00:03]} Rc6 {[%emt 0:00:08]} 60. Qxd2+ {[%emt 0:00:02]} Kg6 {[%emt 0:00:00]} 61. Qd8 {[%emt 0:00:04]} Rc2 {[%emt 0:00:15]} 62. Qg8+ {[%emt 0:00:07]} Kh6 {[%emt 0:00:01]} 63. Qf7 {[%emt 0:00:11] White mates.} Rxh2 {[%emt 0:00:06]} 64. Qxf6+ {[%emt 0:00:01]} Kh7 {[%emt 0:00:00]} 65. Qxf5+ {[%emt 0:00:01]} Kh6 {[%emt 0:00:09]} 66. g4 {[%emt 0:00:13] Weighted Error Value: White=0.08 (flawless) /Black=0.44} 1-0

[Event "MCCT Oslo Esports Cup 2022"]
[Site "Oslo"]
[Date "2022.04.20"]
[Round "3.2"]
[White "Duda, Jan-Krzysztof"]
[Black "Van Foreest, Jorden"]
[Result "1/2-1/2"]
[ECO "D12"]
[WhiteElo "2750"]
[BlackElo "2714"]
[Annotator "TA"]
[PlyCount "109"]
[EventDate "2022.04.14"]
[EventType "tourn"]
[EventCountry "NOR"]
[SourceTitle "playchess.com"]
[Source "ChessBase"]
[SourceQuality "1"]
[TimeControl "1500+10"]

{[%evp 12,109,28,27,43,10,18,-10,21,7,11,0,14,22,13,0,4,-2,0,-22,-23,-29,0,0,6,1,93,0,53,41,64,23,10,2,32,41,30,41,31,33,35,41,34,30,42,44,39,41,44,37,37,37,37,37,37,26,29,31,30,27,29,29,26,22,31,31,36,36,36,36,36,36,36,36,37,32,37,37,37,37,37,36,36,31,36,15,22,22,22,22,22,0,8,8,8,0,0,0,8,8]} 1. d4 {[%emt 0:10:00]} d5 {[%emt 0:10:00]} 2. c4 {[%emt 0:00:05]} c6 {[%emt 0:00:07]} 3. Nf3 {[%emt 0:00:04]} Nf6 {[%emt 0:00:02]} 4. e3 {[%emt 0:00:01]} Bf5 {[%emt 0:00:09]} 5. Nc3 {[%emt 0:00:04]} e6 {[%emt 0:00:01]} 6. Nh4 {[%emt 0:00:03]} Be4 {[%emt 0:00:01]} 7. f3 {[%emt 0:00:04]} Bg6 {[%emt 0:00:01] D12: Slav Defence: 3 Nf3 Nf6 4 e3 Bf5.} 8. Nxg6 {[%emt 0:00:24]} hxg6 {[%emt 0:00:04]} 9. g3 {[%emt 0:00:04]} Nbd7 {[%emt 0:01:10] 9...Be7 gains popularity.} (9... Bd6 $5 {[%cal Rd6g3]}) 10. Kf2 {[%emt 0:00:06]} Bd6 {[%emt 0:00:15]} 11. Kg2 {[%emt 0:00:14]} O-O {[%emt 0:00:43]} 12. Qb3 {[%emt 0:00:46]} Rb8 {[%emt 0:00:15] [#]} 13. cxd5 $146 {[%emt 0:01:06]} ({Predecessor:} 13. f4 Bc7 14. Be2 Ba5 15. Bf3 Re8 16. Rd1 Qc7 17. Bd2 Bxc3 18. Qxc3 Ne4 19. Bxe4 dxe4 {½-½ (43) Li,S (2190)-Xi,Q (2270) Shaoxing 2021}) 13... exd5 {[%emt 0:00:11]} ({Much less strong is} 13... Nxd5 14. e4 Nxc3 15. Qxc3 $14) 14. Bd2 {[%emt 0:00:29]} Re8 {[%emt 0:00:10]} 15. Rd1 {[%emt 0:01:15]} b5 {[%emt 0:00:37]} 16. Bc1 {[%emt 0:00:30]} g5 {[%emt 0:00:24]} 17. g4 {[%emt 0:01:00]} Nf8 {[%emt 0:00:07] And now ...b4 would win.} 18. Bd3 {[%emt 0:00:05] With the idea h4.} Ne6 {[%emt 0:00:06] [#]} (18... N6d7 $1 $11 {keeps the balance.}) 19. Bb1 {[%emt 0:00:31]} (19. h4 $1 $16) 19... g6 {[%emt 0:00:02]} (19... Nd7 $11) 20. h4 $1 $14 {[%emt 0:01:28]} Qd7 {[%emt 0:01:02]} 21. Qc2 {[%emt 0:01:01] Threatens to win with Qf2.} Kg7 {[%emt 0:01:23]} 22. h5 {[%emt 0:02:17][%cal Rh5g6]} gxh5 {[%emt 0:00:04]} (22... b4 $5 {[%cal Rb4c3]} 23. Ne2 gxh5 $14) 23. gxh5 {[%emt 0:00:18]} Rh8 {[%emt 0:00:07]} 24. h6+ $1 {[%emt 0:00:07]} Rxh6 {[%emt 0:02:08]} 25. Rxh6 {[%emt 0:00:00] Dancing on a razor blade.} Kxh6 {[%emt 0:00:00]} 26. e4 {[%emt 0:00:18]} dxe4 {[%emt 0:03:37]} (26... Nf4+ $2 27. Bxf4 gxf4 28. Rh1+ Kg7 29. e5 $18) 27. Nxe4 {[%emt 0:00:36]} Kg7 {[%emt 0:00:59]} 28. Nxf6 {[%emt 0:01:04]} Kxf6 {[%emt 0:00:00]} 29. Qf5+ {[%emt 0:01:16]} Ke7 $1 {[%emt 0:00:17]} 30. Bxg5+ {[%emt 0:00:03]} Nxg5 {[%emt 0:00:05]} 31. Qxg5+ {[%emt 0:00:00]} f6 {[%emt 0:00:06]} 32. Re1+ {[%emt 0:00:12]} Kd8 {[%emt 0:00:04]} 33. Qxf6+ {[%emt 0:00:06]} Kc7 {[%emt 0:00:01] [#] Strongly threatening ...Rg8+.} 34. Bf5 {[%emt 0:00:06] Active counter play!} Rg8+ {[%emt 0:00:06]} 35. Kf1 {[%emt 0:00:07]} Qd8 {[%emt 0:00:38]} 36. Qxd8+ {[%emt 0:02:24]} Rxd8 $11 {[%emt 0:00:00][%mdl 4096] Endgame KRB-KRB} 37. Re6 {[%emt 0:01:23]} Bf4 {[%emt 0:00:39]} 38. Be4 {[%emt 0:00:18]} Rd6 {[%emt 0:00:02]} 39. Rxd6 {[%emt 0:00:10]} Kxd6 $14 {[%emt 0:00:01] KB-KB} 40. Ke2 {[%emt 0:00:03]} c5 {[%emt 0:00:07]} 41. dxc5+ {[%emt 0:00:04]} Kxc5 {[%emt 0:00:00]} 42. Kd3 {[%emt 0:00:01]} b4 {[%emt 0:00:07]} 43. Bb7 {[%emt 0:00:06]} a5 {[%emt 0:00:31]} 44. b3 {[%emt 0:00:08]} Kd6 {[%emt 0:00:23]} 45. Kc4 {[%emt 0:00:18]} Bg5 {[%emt 0:00:13]} 46. Kb5 {[%emt 0:00:04]} Bd8 {[%emt 0:00:01]} 47. Ka4 {[%emt 0:00:02]} Kc5 {[%emt 0:00:09]} 48. a3 {[%emt 0:00:02]} bxa3 {[%emt 0:00:02] The position is equal.} 49. Kxa3 {[%emt 0:00:00]} Bg5 {[%emt 0:00:08]} 50. Ka4 {[%emt 0:00:06]} Bd2 {[%emt 0:00:01]} 51. f4 {[%emt 0:00:01]} Bxf4 {[%emt 0:00:01]} 52. Kxa5 {[%emt 0:00:02]} Bd2+ {[%emt 0:00:00]} 53. b4+ {[%emt 0:00:01]} Bxb4+ {[%emt 0:00:01]} 54. Ka4 {[%emt 0:00:02]} Ba5 {[%emt 0:00:00]} 55. Kxa5 {[%emt 0:00:00] Weighted Error Value: White=0.07 (flawless) /Black=0.10 (very precise)} 1/2-1/2

[Event "MCCT Oslo Esports Cup 2022"]
[Site "Oslo"]
[Date "2022.04.20"]
[Round "3.2"]
[White "Praggnanandhaa R"]
[Black "Le, Quang Liem"]
[Result "1-0"]
[ECO "D38"]
[WhiteElo "2624"]
[BlackElo "2709"]
[Annotator "TA"]
[PlyCount "185"]
[EventDate "2022.04.14"]
[EventType "tourn"]
[EventCountry "NOR"]
[SourceTitle "playchess.com"]
[Source "ChessBase"]
[SourceQuality "1"]
[TimeControl "1500+10"]

{[%evp 58,185,118,114,114,59,56,54,57,56,66,75,60,32,143,134,255,256,251,250,233,242,393,404,433,388,343,297,389,388,377,227,368,352,766,716,645,567,6940,6924,6491,5853,5297,5174,5100,4777,2879,1202,5274,5582,12833,12831,12684,1478,12811,12827,29944,12845,29936,12809,12737,12701,29936,12730,29942,12730,12708,12684,12708,0,12701,12701,12684,12684,12684,12469,12560,12443,12774,12747,12791,12492,12451,12203,12757,12203,12354,12118,11764,11187,11599,0,12793,12266,11323,8093,5781,5660,12847,12826,29936,12828,12829,12773,12231,11884,12083,11839,12185,11850,11376,10568,10423,7225,5656,4450,9593,9593,5336,3510,29959,29961,29973,29974,29974,29975,29974,29976,29968,29960]} 1. d4 {[%emt 0:10:00]} Nf6 {[%emt 0:10:00]} 2. c4 {[%emt 0:00:02]} e6 {[%emt 0:00:02]} 3. Nf3 {[%emt 0:00:01]} d5 {[%emt 0:00:01]} 4. Nc3 {[%emt 0:00:00]} Bb4 {[%emt 0:00:01]} 5. Qa4+ {[%emt 0:00:03]} Nc6 {[%emt 0:00:02]} 6. e3 {[%emt 0:00:01]} O-O {[%emt 0:00:01]} 7. Qc2 {[%emt 0:00:01]} Re8 {[%emt 0:00:08]} 8. Bd2 {[%emt 0:00:08]} Bf8 {[%emt 0:00:12]} 9. Be2 {[%emt 0:00:17]} b6 {[%emt 0:01:23]} 10. cxd5 {[%emt 0:00:54]} exd5 {[%emt 0:00:34]} 11. O-O {[%emt 0:00:04]} Bb7 {[%emt 0:00:07]} 12. a3 {[%emt 0:00:48]} Ne7 {[%emt 0:01:30]} 13. Bb5 {[%emt 0:03:21]} c6 {[%emt 0:00:05]} 14. Bd3 {[%emt 0:00:02]} Ng6 {[%emt 0:00:06]} 15. b4 {[%emt 0:01:08]} a5 {[%emt 0:00:39]} 16. Rab1 {[%emt 0:01:09]} axb4 {[%emt 0:00:31]} 17. axb4 {[%emt 0:00:00]} b5 {[%emt 0:02:25]} 18. Rfe1 {[%emt 0:03:59]} Ra3 {[%emt 0:04:31]} 19. e4 {[%emt 0:01:29]} dxe4 {[%emt 0:00:00]} 20. Nxe4 {[%emt 0:00:02]} Nd5 {[%emt 0:00:01]} 21. Nfg5 {[%emt 0:02:03]} Be7 {[%emt 0:02:46]} 22. h4 {[%emt 0:01:28]} Bc8 {[%emt 0:00:35]} 23. Ng3 {[%emt 0:00:41]} Bd7 {[%emt 0:00:50]} 24. Nf5 {[%emt 0:00:17]} Bxg5 {[%emt 0:01:29]} 25. Bxg5 {[%emt 0:00:17]} f6 {[%emt 0:00:01]} 26. Bd2 {[%emt 0:00:30]} Ngf4 {[%emt 0:00:13]} 27. Bf1 {[%emt 0:00:16]} Ne6 {[%emt 0:00:47]} 28. h5 {[%emt 0:00:08]} Qb6 {[%emt 0:00:07]} 29. Qe4 {[%emt 0:00:24]} Raa8 {[%emt 0:00:34] [#]} (29... Nf8 $11 30. Qg4 Bxf5 $1 31. Qxf5 Rea8) 30. Qg4 $1 $16 {[%emt 0:00:04]} (30. Nd6 $6 Ng5 31. Qd3 Rf8 $11) 30... Ng5 {[%emt 0:00:01]} 31. Bxg5 {[%emt 0:00:16]} (31. Bd3 $16) 31... Bxf5 {[%emt 0:00:02]} 32. Qxf5 {[%emt 0:00:02]} fxg5 {[%emt 0:00:00]} (32... Rxe1 $2 33. Rxe1 fxg5 34. Qe6+ (34. Bd3 Nf6 $16) 34... Kf8 35. Qd6+ Kg8 36. Qe6+ Kf8 37. Bd3 $18) 33. Bd3 {[%emt 0:00:16]} Nf6 {[%emt 0:00:01]} 34. h6 {[%emt 0:00:21]} Qxd4 {[%emt 0:00:02]} 35. Qxg5 {[%emt 0:00:01]} Qg4 {[%emt 0:00:26]} ({Black should try} 35... Ng4 $14 36. Qxg7+ (36. Qf5 $2 g6 $19) 36... Qxg7 37. hxg7 Kxg7) 36. Qc5 $16 {[%emt 0:00:11]} (36. Rxe8+ Rxe8 37. Qc5 Qh5 $16) 36... Qf4 {[%emt 0:00:19]} (36... Qh5 $16) 37. Qxc6 $18 {[%emt 0:00:13]} Qxh6 {[%emt 0:00:03]} 38. Rxe8+ {[%emt 0:00:12]} ({Much less strong is} 38. Bxb5 $6 Qh4 39. g3 Qg4 40. Rxe8+ Rxe8 41. Bc4+ Kh8 $18) ({Don't play} 38. Qxb5 $6 Rxe1+ 39. Rxe1 Qf4 $18) 38... Rxe8 {[%emt 0:00:00]} 39. Bxb5 {[%emt 0:00:01]} Kh8 $2 {[%emt 0:00:16]} (39... Qh4 40. Qc7 Ng4 41. Bc4+ (41. Bxe8 Qxf2+ 42. Kh1 Qh4+ 43. Kg1 Qf2+ 44. Kh1 Qh4+ 45. Kg1 Qf2+ $11) 41... Kh8) 40. Qd6 $18 {[%emt 0:00:13]} Rc8 {[%emt 0:00:12]} 41. Bc6 {[%emt 0:00:06]} Qg6 {[%emt 0:00:38]} 42. Rd1 {[%emt 0:00:02]} h6 {[%emt 0:00:03]} 43. b5 {[%emt 0:00:02]} Qc2 {[%emt 0:00:02]} 44. Qd3 {[%emt 0:00:26]} Rxc6 {[%emt 0:00:12]} (44... Qxd3 {keeps fighting.} 45. Rxd3 Rb8) 45. bxc6 $18 {[%emt 0:00:03]} Qxc6 {[%emt 0:00:00]} 46. Qf5 {[%emt 0:00:10]} Kg8 {[%emt 0:00:21]} 47. g3 {[%emt 0:00:14]} Qe4 {[%emt 0:00:04]} 48. Rd8+ {[%emt 0:00:26]} Kf7 {[%emt 0:00:02]} 49. Qxe4 {[%emt 0:00:13]} Nxe4 {[%emt 0:00:00]} 50. Rd7+ {[%emt 0:00:01]} Kg6 {[%emt 0:00:17]} 51. Kg2 {[%emt 0:00:01]} Ng5 {[%emt 0:00:09]} 52. Ra7 {[%emt 0:00:08]} (52. Rd6+ $142 Kf5 53. f3) 52... Ne6 {[%emt 0:00:07]} 53. Kf3 {[%emt 0:00:05]} Kf6 {[%emt 0:00:02]} 54. Kg4 {[%emt 0:00:15]} g6 {[%emt 0:00:03]} 55. Ra6 {[%emt 0:00:03]} h5+ {[%emt 0:00:07]} 56. Kh4 {[%emt 0:00:11]} Kf5 {[%emt 0:00:01]} 57. f3 {[%emt 0:00:28]} Kf6 {[%emt 0:00:11]} 58. Kh3 {[%emt 0:00:05]} (58. g4 $142 hxg4 59. fxg4 Ke7 60. Kg3 Kf6 61. Kh4 Kf7 62. Ra7+ Kf6 63. Ra8) 58... Kf7 {[%emt 0:00:07]} 59. Kg2 {[%emt 0:00:01]} Nd4 {[%emt 0:00:14]} 60. Kf2 {[%emt 0:00:05]} (60. g4 $142 hxg4 61. fxg4 Kg7 62. Kf2 Kf7 63. Ke3 Ne6 64. Rb6 Nd8 65. Rd6) 60... Nf5 {[%emt 0:00:06]} 61. Rb6 {[%emt 0:00:36]} (61. g4 $142 hxg4 62. fxg4 Nh4 63. g5 Nf5 64. Kg2 Nd4 65. Rf6+ Kg7 66. Rd6) 61... Ne7 $18 {[%emt 0:00:19]} 62. Rb7 {[%emt 0:00:03]} Kf6 {[%emt 0:00:01]} 63. Rb6+ {[%emt 0:00:17]} Kf7 $1 {[%emt 0:00:05]} 64. Rd6 {[%emt 0:00:04]} Nf5 {[%emt 0:00:02]} 65. Ra6 {[%emt 0:00:01]} Kg7 {[%emt 0:00:47]} 66. Kg2 {[%emt 0:00:04]} Nd4 {[%emt 0:00:31]} 67. Ra4 {[%emt 0:00:06]} Nf5 {[%emt 0:00:03]} 68. Kh3 {[%emt 0:00:09]} Kf6 {[%emt 0:00:02]} 69. Ra6+ {[%emt 0:00:01]} Kg5 {[%emt 0:00:04]} 70. Rb6 {[%emt 0:00:07]} Nd4 {[%emt 0:00:11]} 71. Kg2 {[%emt 0:00:28]} Nf5 {[%emt 0:00:08]} 72. Rb5 {[%emt 0:00:02]} Kf6 {[%emt 0:00:05]} 73. Ra5 {[%emt 0:00:02]} Nd4 {[%emt 0:00:03]} 74. Ra6+ $2 {[%emt 0:00:10]} (74. Kf2 $18 {Black must now prevent Ra6+.} Nf5 75. Ra6+ Kg5 76. f4+ Kh6 77. Ra7) 74... Kg5 $2 {[%emt 0:00:12][%mdl 8192]} (74... Kf7 $11 75. Kf2 Nf5) 75. Rd6 {[%emt 0:00:02]} Nf5 {[%emt 0:00:02]} 76. Rd5 {[%emt 0:00:08]} Kf6 {[%emt 0:00:03]} 77. Kh3 {[%emt 0:00:02]} Nh6 {[%emt 0:00:17]} 78. Rd6+ {[%emt 0:00:34]} Kg5 {[%emt 0:00:15]} 79. f4+ {[%emt 0:00:35]} Kf5 {[%emt 0:00:02]} 80. Ra6 {[%emt 0:00:11]} Ng4 {[%emt 0:00:13]} 81. Kh4 {[%emt 0:00:02]} Ne3 {[%emt 0:00:04]} 82. Ra3 {[%emt 0:00:01]} Ng4 {[%emt 0:00:18]} 83. Ra5+ {[%emt 0:00:24]} Kf6 {[%emt 0:00:02]} 84. Ra6+ {[%emt 0:00:13]} Kf5 {[%emt 0:00:01]} 85. Kh3 {[%emt 0:00:11]} Ne3 {[%emt 0:00:09]} 86. Ra3 {[%emt 0:00:05]} Ng4 {[%emt 0:00:05]} 87. Kg2 {[%emt 0:00:07]} Kf6 {[%emt 0:00:02]} 88. Ra6+ {[%emt 0:00:03]} Kf7 {[%emt 0:00:05]} 89. Kh3 {[%emt 0:00:22]} Nh6 {[%emt 0:00:06]} 90. Kh4 {[%emt 0:00:11]} Kg7 {[%emt 0:00:03]} 91. Rb6 {[%emt 0:00:05]} Nf7 {[%emt 0:00:14]} 92. f5 {[%emt 0:00:07]} gxf5 {[%emt 0:01:30]} 93. Kxh5 {[%emt 0:00:01]} 1-0